[Event "Slovakia Open 2022"]
[Site "Bratislava"]
[Date "2022.09.30"]
[Round "3.28"]
[White "Prochazka, Peter"]
[Black "Shykhnenko, Hryhorii"]
[Result "1-0"]
[ECO "C44"]
[WhiteElo "1792"]
[BlackElo "1317"]
[Annotator "NA RC COMBH"]
[PlyCount "51"]
[EventDate "2022.09.30"]
[EventCountry "SVK"]
[SourceTitle "playchess.com"]
[Source "ChessBase"]
[SourceQuality "1"]
[TimeControl "2700+10"]

1. e4 {[%emt 0:00:02]} e5 {[%emt 0:00:01]} 2. d4 {[%emt 0:00:02]} exd4 {[%emt 0:00:02]} 3. c3 {[%emt 0:00:01]} dxc3 {[%emt 0:00:04]} 4. Bc4 {[%emt 0:00:02]} Nc6 {[%emt 0:00:24]} 5. Nf3 {[%emt 0:00:47]} Bc5 {[%emt 0:00:15]} 6. Bxf7+ {[%emt 0:00:48]} Kxf7 {[%emt 0:00:33]} 7. Qd5+ {[%emt 0:00:16]} Ke8 {[%emt 0:00:04]} 8. Qxc5 {[%emt 0:00:24]} d6 {[%emt 0:01:07]} 9. Qxc3 {[%emt 0:05:11]} Qf6 {[%emt 0:00:19]} 10. Bd2 {[%emt 0:02:53]} Be6 {[%emt 0:04:55]} 11. O-O {[%emt 0:01:05]} Qxc3 {[%emt 0:01:39]} 12. Bxc3 {[%emt 0:00:52]} Nf6 {[%emt 0:00:34]} 13. Re1 {[%emt 0:01:34]} Kd7 {[%emt 0:05:13]} 14. e5 {[%emt 0:03:01]} Nd5 {[%emt 0:02:05]} 15. exd6 {[%emt 0:00:32]} Nxc3 {[%emt 0:00:29]} 16. Nxc3 {[%emt 0:00:05]} cxd6 {[%emt 0:00:15]} 17. Rad1 {[%emt 0:00:24]} Rhe8 {[%emt 0:03:20]} 18. Nb5 {[%emt 0:05:45]} d5 {[%emt 0:00:18]} 19. h3 {[%emt 0:03:22]} a6 {[%emt 0:00:35]} 20. Nc3 {[%emt 0:00:55]} Kd6 {[%emt 0:00:52]} 21. Ne4+ {[%emt 0:00:50]} Kc7 {[%emt 0:00:43]} 22. Ng3 {[%emt 0:03:24]} Rad8 {[%emt 0:01:31]} 23. Nd4 {[%emt 0:01:02]} Bg8 {[%emt 0:02:28]} 24. Kf1 {[%emt 0:01:23]} Rxe1+ {[%emt 0:01:36]} 25. Kxe1 {[%emt 0:00:10]} b5 {[%emt 0:02:47]} 26. Rc1 {[%emt 0:01:35]} 1-0

[Event "Slovakia Open 2022"]
[Site "Bratislava"]
[Date "2022.09.30"]
[Round "3.29"]
[White "Meszaros, Casey Ryan"]
[Black "Benci, Jozef"]
[Result "1-0"]
[ECO "A06"]
[WhiteElo "1925"]
[BlackElo "1873"]
[Annotator "TA"]
[PlyCount "72"]
[EventDate "2022.09.30"]
[EventCountry "SVK"]
[SourceTitle "playchess.com"]
[Source "ChessBase"]
[SourceQuality "1"]
[TimeControl "2700+10"]

{[%evp 9,72,33,35,30,27,27,20,0,0,0,0,0,-6,-30,-13,-25,-29,-26,-13,-15,-15,-29,17,0,0,-16,0,0,0,0,0,0,0,0,0,0,8,19,0,-37,0,0,0,0,0,0,0,0,0,-5,-3,-6,6,0,0,0,0,-539,-501,-29993,-29994,-29995,-29996,-29998,-29998]} 1. b3 {[%emt 0:00:06]} d5 {[%emt 0:00:10]} 2. Bb2 {[%emt 0:00:03]} Nf6 {[%emt 0:00:12]} 3. e3 {[%emt 0:00:02]} Nc6 {[%emt 0:00:03]} 4. Nf3 {[%emt 0:00:04]} Bg4 {[%emt 0:00:03]} 5. Be2 {[%emt 0:00:03]} e6 {[%emt 0:00:04]} 6. h3 {[%emt 0:00:16] A06: Réti Opening: 1 Nf3 d5.} Bh5 {[%emt 0:00:01]} 7. O-O {[%emt 0:00:04]} Bd6 {[%emt 0:00:04] [#]} 8. Nd4 $146 {[%emt 0:00:35] The position is equal.} ({Predecessor:} 8. d4 O-O 9. Nbd2 Ne7 10. c4 c6 11. Rc1 Rc8 12. c5 Bb8 13. b4 Qc7 14. b5 Ne4 15. g3 Nxg3 16. fxg3 Qxg3+ 17. Kh1 Nf5 18. Ne5 {0-1 (18) Rojas Puerta,M (1368)-Morales,L (1703) Medellin 2022}) 8... Bxe2 {[%emt 0:00:17]} 9. Qxe2 {[%emt 0:00:33]} Nxd4 {[%emt 0:00:03]} 10. Bxd4 {[%emt 0:00:08]} O-O {[%emt 0:00:12]} 11. Qb5 {[%emt 0:02:13]} b6 {[%emt 0:00:36]} 12. Qe2 {[%emt 0:04:55]} e5 {[%emt 0:00:07]} 13. Bb2 {[%emt 0:00:08]} c5 {[%emt 0:00:03]} 14. d3 {[%emt 0:01:14]} Re8 {[%emt 0:00:09]} 15. Qf3 {[%emt 0:00:47]} a5 {[%emt 0:00:56]} (15... d4 $142) 16. c4 {[%emt 0:00:37]} d4 {[%emt 0:01:08]} 17. e4 {[%emt 0:01:19]} h6 {[%emt 0:00:10]} 18. Na3 {[%emt 0:00:10]} a4 {[%emt 0:00:08]} 19. Nb5 {[%emt 0:00:31]} Bf8 {[%emt 0:00:09]} 20. Qd1 {[%emt 0:02:38]} axb3 {[%emt 0:00:21]} 21. axb3 {[%emt 0:01:23] [#] Black must now prevent Rxa8.} Qd7 {[%emt 0:00:18]} 22. Qe2 {[%emt 0:02:49]} g6 {[%emt 0:00:20]} 23. Rxa8 {[%emt 0:01:36]} Rxa8 {[%emt 0:00:02]} 24. Ra1 {[%emt 0:00:09] Against Ra2} Qb7 {[%emt 0:00:19]} 25. Qd1 {[%emt 0:01:42]} Nh5 {[%emt 0:00:33]} 26. g3 {[%emt 0:02:17]} Qc8 {[%emt 0:00:15] ...Rxa1 is the strong threat.} 27. Rxa8 {[%emt 0:00:34]} Qxa8 {[%emt 0:00:03]} 28. Qa1 {[%emt 0:01:04]} Qc8 {[%emt 0:00:13]} 29. Kh2 {[%emt 0:00:31]} f5 {[%emt 0:00:11]} 30. f3 {[%emt 0:02:02]} g5 {[%emt 0:00:17]} 31. Qa7 {[%emt 0:01:00]} g4 {[%emt 0:01:08]} 32. fxg4 {[%emt 0:02:21]} fxg4 {[%emt 0:00:04]} 33. h4 {[%emt 0:00:23][%mdl 8192]} (33. Qxb6 $11 gxh3 34. Qg6+ Ng7 35. Bc1 (35. Qxh6 Qg4 $15)) 33... Qd8 {[%emt 0:00:11] aiming for ...Qf6.} 34. Qc7 {[%emt 0:00:42] [#]} (34. Qa1 $19 Qf6 35. Qe1) 34... Qf6 {[%emt 0:00:15] Black mates.} 35. Kg1 {[%emt 0:06:23]} Nxg3 {[%emt 0:00:07]} 36. Kg2 {[%emt 0:00:35]} Qf3+ {[%emt 0:00:26][%mdl 32768] Weighted Error Value: White=0.46/Black=0.07 (flawless) . Loss on time!?} 1-0

[Event "Slovakia Open 2022"]
[Site "Bratislava"]
[Date "2022.09.30"]
[Round "3.30"]
[White "Pekar, Matus"]
[Black "Kushko, Dmitriy"]
[Result "0-1"]
[ECO "A41"]
[WhiteElo "1679"]
[BlackElo "2302"]
[Annotator "TA"]
[PlyCount "112"]
[EventDate "2022.09.30"]
[EventCountry "SVK"]
[SourceTitle "playchess.com"]
[Source "ChessBase"]
[SourceQuality "1"]
[TimeControl "2700+10"]

{[%evp 9,112,31,52,0,0,0,0,0,0,16,20,10,53,45,42,57,58,22,40,0,-13,-44,-40,-40,-44,-90,-93,-86,-86,-96,-86,-105,-102,-87,-88,-135,-118,-137,-125,-145,-128,-440,-425,-402,-337,-347,-350,-418,-416,-424,-423,-510,-517,-513,-512,-511,-508,-497,-433,-437,-395,-431,-387,-441,-434,-473,-445,-447,-447,-418,-419,-421,-406,-416,-389,-507,-486,-501,-479,-730,-642,-814,-748,-964,-456,-844,-558,-1788,-1739,-2043,-1956,-1941,-1844,-29980,-29981,-29974,-7078,-29989,-29990,-29990,-29991,-29991,-29992,-29992,-938]} 1. d4 {[%emt 0:00:07]} d6 {[%emt 0:00:02]} 2. Nc3 {[%emt 0:01:39]} g6 {[%emt 0:00:04]} 3. Bf4 {[%emt 0:00:07]} Bg7 {[%emt 0:00:08]} 4. Qd2 {[%emt 0:00:20]} Nc6 {[%emt 0:02:37]} 5. Nf3 {[%emt 0:01:21]} Bg4 {[%emt 0:00:42]} 6. e3 {[%emt 0:01:00] A41: 1 d4 d6: Tartakower System and Modern Defence.} (6. d5 $1 $14 Ne5 7. O-O-O) 6... e5 $11 {[%emt 0:02:47]} 7. Bg5 {[%emt 0:02:42]} f6 {[%emt 0:01:24] [#] White must now prevent ...Bxf3.} 8. Bh4 {[%emt 0:00:32] The position is equal.} Bxf3 {[%emt 0:00:22]} 9. gxf3 {[%emt 0:00:26]} exd4 {[%emt 0:00:04] [#]} 10. exd4 $146 {[%emt 0:01:05]} ({Predecessor:} 10. Nb5 Nge7 11. Nxd4 Nxd4 12. Qxd4 O-O 13. e4 Kh8 14. f4 f5 15. Qd2 fxe4 16. O-O-O {0-1 (37) Jovovic,M (2065)-Arapovic,V (2331) Sarajevo 2019}) 10... d5 {[%emt 0:00:07]} 11. O-O-O {[%emt 0:01:12]} Bh6 {[%emt 0:01:07]} 12. f4 {[%emt 0:02:56]} Qd6 {[%emt 0:00:16]} 13. Bg3 {[%emt 0:01:28]} O-O-O {[%emt 0:02:31]} 14. Kb1 {[%emt 0:01:23]} (14. Bg2 $14) 14... f5 {[%emt 0:08:33]} 15. f3 {[%emt 0:02:40]} Nf6 {[%emt 0:01:22][%cal Bg8f6,Bf6h5,Bh5f4][%mdl 32]} 16. Nb5 {[%emt 0:03:32]} Qf8 {[%emt 0:00:06]} 17. a3 {[%emt 0:03:13]} (17. Nc3 $15) 17... a6 $17 {[%emt 0:00:16]} 18. Nc3 {[%emt 0:00:04][%cal Bb5c3,Bc3a4,Ba4c5][%mdl 32]} Qd6 {[%emt 0:00:41]} 19. Na4 {[%emt 0:00:46]} Nh5 {[%emt 0:00:12][%cal Rh6f4] Black is more active.} 20. Nc5 {[%emt 0:01:33]} Bxf4 {[%emt 0:00:24]} 21. Bxf4 {[%emt 0:02:14]} Nxf4 {[%emt 0:00:02]} 22. Qc3 {[%emt 0:02:39]} (22. c3 $142) 22... Ne6 {[%emt 0:00:06] Pair of Knights!} 23. Nb3 {[%emt 0:01:23]} Rhe8 {[%emt 0:01:04]} 24. Re1 {[%emt 0:00:59]} Re7 {[%emt 0:02:58]} 25. Rxe6 $4 {[%emt 0:01:11][%mdl 8192] This move loses the game for White.} Qxe6 $19 {[%emt 0:00:16]} (25... Rxe6 $2 {is the wrong capture.} 26. Nc5 $19) 26. Bd3 {[%emt 0:02:51]} Nb8 {[%emt 0:00:20]} 27. Qb4 {[%emt 0:01:31]} Qd6 {[%emt 0:00:36] Hoping for ...Qxb4.} 28. Qa4 {[%emt 0:01:24]} Rde8 {[%emt 0:00:48]} 29. Nc5 {[%emt 0:00:58]} Nd7 {[%emt 0:00:11]} 30. Nb3 {[%emt 0:03:58]} Re1+ {[%emt 0:00:11]} 31. Rxe1 {[%emt 0:00:06]} Rxe1+ {[%emt 0:00:02]} 32. Ka2 {[%emt 0:00:04]} Re6 {[%emt 0:00:39]} 33. Qa5 {[%emt 0:00:49]} c6 {[%emt 0:00:40]} 34. Qd2 {[%emt 0:00:15]} Kb8 {[%emt 0:01:13]} 35. Qg5 {[%emt 0:00:12]} Re7 {[%emt 0:00:08]} 36. h4 {[%emt 0:00:16]} f4 {[%emt 0:00:19]} 37. h5 {[%emt 0:00:10]} Qf6 {[%emt 0:00:21]} 38. Qg4 {[%emt 0:00:25]} gxh5 {[%emt 0:00:52]} 39. Qxh5 {[%emt 0:00:07]} h6 {[%emt 0:00:01]} 40. Qh3 {[%emt 0:00:17]} Rf7 {[%emt 0:00:02]} 41. Qg4 {[%emt 0:00:07]} Kc7 {[%emt 0:00:26]} 42. Qg1 {[%emt 0:00:05]} h5 {[%emt 0:00:11]} 43. Qe1 {[%emt 0:00:05]} h4 {[%emt 0:00:19] [#] And now ...h3 would win.} 44. Qa5+ {[%emt 0:00:03]} (44. Bf1 $142 Re7 45. Qa5+ b6 46. Qxa6) 44... Kc8 {[%emt 0:00:01] Strongly threatening ...h3.} 45. Qb4 {[%emt 0:00:09]} Qe7 {[%emt 0:00:15] ...Qxb4 is the strong threat.} 46. Qa4 {[%emt 0:00:19]} Nb8 {[%emt 0:00:48]} (46... h3 $142 47. Bxa6 Qd6) 47. c4 {[%emt 0:00:54]} (47. Bf1 $142) 47... dxc4 {[%emt 0:00:13]} 48. Bxc4 {[%emt 0:00:09]} b5 {[%emt 0:00:03]} 49. Bxb5 {[%emt 0:00:47]} cxb5 {[%emt 0:00:14]} 50. Qa5 {[%emt 0:00:02]} h3 {[%emt 0:00:09]} 51. Qb6 {[%emt 0:00:11]} Rf6 {[%emt 0:00:13]} 52. Qa5 {[%emt 0:00:10]} h2 {[%emt 0:00:02]} 53. Nc5 {[%emt 0:00:09]} h1=Q {[%emt 0:00:07] Black mates.} 54. Qd2 {[%emt 0:00:24]} Qf7+ {[%emt 0:00:09]} 55. d5 {[%emt 0:00:06]} Qxf3 {[%emt 0:00:08]} 56. Ne6 {[%emt 0:00:24]} Qd3 {[%emt 0:00:05] Weighted Error Value: White=0.47/Black=0.14 (very precise)} 0-1

[Event "Slovakia Open 2022"]
[Site "Bratislava"]
[Date "2022.09.30"]
[Round "3.31"]
[White "Park, Seonjae"]
[Black "Rehacek, Oldrich"]
[Result "1-0"]
[ECO "A40"]
[WhiteElo "1704"]
[BlackElo "1366"]
[Annotator "NA RC COMBH"]
[PlyCount "63"]
[EventDate "2022.09.30"]
[EventCountry "SVK"]
[SourceTitle "playchess.com"]
[Source "ChessBase"]
[SourceQuality "1"]
[TimeControl "2700+10"]

1. d4 {[%emt 0:00:04]} b6 {[%emt 0:00:04]} 2. c4 {[%emt 0:00:18]} e6 {[%emt 0:00:05]} 3. Nc3 {[%emt 0:00:05]} Bb4 {[%emt 0:00:09]} 4. Bd2 {[%emt 0:00:20]} Bb7 {[%emt 0:00:09]} 5. f3 {[%emt 0:00:45]} Nf6 {[%emt 0:00:51]} 6. e4 {[%emt 0:00:12]} d6 {[%emt 0:01:31]} 7. a3 {[%emt 0:00:12]} Bxc3 {[%emt 0:00:11]} 8. Bxc3 {[%emt 0:00:01]} O-O {[%emt 0:00:19]} 9. Qd2 {[%emt 0:00:22]} c5 {[%emt 0:00:30]} 10. d5 {[%emt 0:00:13]} exd5 {[%emt 0:00:07]} 11. exd5 {[%emt 0:01:05]} Re8+ {[%emt 0:00:14]} 12. Be2 {[%emt 0:00:03]} Nbd7 {[%emt 0:01:10]} 13. O-O-O {[%emt 0:00:56]} Ne5 {[%emt 0:02:33]} 14. g4 {[%emt 0:01:25]} Bc8 {[%emt 0:02:37]} 15. h3 {[%emt 0:02:08]} Rb8 {[%emt 0:01:56]} 16. f4 {[%emt 0:00:53]} Ng6 {[%emt 0:00:32]} 17. Bf3 {[%emt 0:03:29]} Ne4 {[%emt 0:00:46]} 18. Bxe4 {[%emt 0:00:02]} Rxe4 {[%emt 0:00:02]} 19. Ne2 {[%emt 0:00:44]} Rxc4 {[%emt 0:01:44]} 20. f5 {[%emt 0:01:31]} Nh4 {[%emt 0:03:07]} 21. Ng3 {[%emt 0:03:44]} Nf3 {[%emt 0:01:25]} 22. Qe2 {[%emt 0:00:43]} Ne5 {[%emt 0:05:28]} 23. Kb1 {[%emt 0:00:35]} Ra4 {[%emt 0:01:38]} 24. Bxe5 {[%emt 0:00:34]} dxe5 {[%emt 0:00:29]} 25. Qxe5 {[%emt 0:00:24]} Bb7 {[%emt 0:01:12]} 26. Rhe1 {[%emt 0:01:41]} Rd4 {[%emt 0:02:23]} 27. Rxd4 {[%emt 0:01:22]} cxd4 {[%emt 0:00:02]} 28. Nh5 {[%emt 0:02:05]} f6 {[%emt 0:03:18]} 29. Qe6+ {[%emt 0:01:19]} Kf8 {[%emt 0:01:07]} 30. d6 {[%emt 0:01:12]} Bc8 {[%emt 0:03:36]} 31. Qe7+ {[%emt 0:00:23]} Qxe7 {[%emt 0:00:22]} 32. dxe7+ {[%emt 0:00:00]} 1-0

[Event "Slovakia Open 2022"]
[Site "Bratislava"]
[Date "2022.09.30"]
[Round "3.32"]
[White "Nosal, Tobias"]
[Black "Dubnicka, Ferdinand"]
[Result "1-0"]
[ECO "E62"]
[WhiteElo "1601"]
[BlackElo "1494"]
[Annotator "NA RC COMBH"]
[PlyCount "151"]
[EventDate "2022.09.30"]
[EventCountry "SVK"]
[SourceTitle "playchess.com"]
[Source "ChessBase"]
[SourceQuality "1"]
[TimeControl "2700+10"]

1. d4 {[%emt 0:00:03]} Nf6 {[%emt 0:00:07]} 2. c4 {[%emt 0:00:02]} d6 {[%emt 0:00:02]} 3. g3 {[%emt 0:00:27]} g6 {[%emt 0:00:02]} 4. Bg2 {[%emt 0:00:02]} Bg7 {[%emt 0:00:01]} 5. Nc3 {[%emt 0:00:04]} O-O {[%emt 0:00:02]} 6. Nf3 {[%emt 0:00:03]} c6 {[%emt 0:00:03]} 7. O-O {[%emt 0:00:09]} Bg4 {[%emt 0:00:03]} 8. h3 {[%emt 0:00:48]} Bxf3 {[%emt 0:00:03]} 9. Bxf3 {[%emt 0:00:03]} h6 {[%emt 0:00:01]} 10. Qb3 {[%emt 0:05:38]} Qc7 {[%emt 0:00:12]} 11. d5 {[%emt 0:02:37]} c5 {[%emt 0:00:02]} 12. e4 {[%emt 0:01:58]} Nfd7 {[%emt 0:00:17]} 13. Bf4 {[%emt 0:03:39]} Ne5 {[%emt 0:05:56]} 14. Bg2 {[%emt 0:00:12]} Nbd7 {[%emt 0:00:02]} 15. Rad1 {[%emt 0:01:04]} a6 {[%emt 0:00:01]} 16. Rfe1 {[%emt 0:02:04]} Kh7 {[%emt 0:00:02]} 17. Bf1 {[%emt 0:00:55]} f5 {[%emt 0:00:03]} 18. exf5 {[%emt 0:00:48]} Nf3+ {[%emt 0:00:05]} 19. Kg2 {[%emt 0:00:43]} Nxe1+ {[%emt 0:00:03]} 20. Rxe1 {[%emt 0:00:02]} Bf6 {[%emt 0:00:15]} 21. fxg6+ {[%emt 0:00:42]} Kxg6 {[%emt 0:01:50]} 22. Qc2+ {[%emt 0:00:58]} Kg7 {[%emt 0:00:01]} 23. Bd3 {[%emt 0:02:28]} Ne5 {[%emt 0:00:02]} 24. Bxe5 {[%emt 0:00:23]} dxe5 {[%emt 0:00:28]} 25. Bh7 {[%emt 0:00:59]} Kh8 {[%emt 0:00:24]} 26. Re4 {[%emt 0:05:16]} e6 {[%emt 0:00:08]} 27. Bg6 {[%emt 0:00:36]} Qg7 {[%emt 0:00:02]} 28. Rg4 {[%emt 0:00:32]} Qe7 {[%emt 0:01:06]} 29. h4 {[%emt 0:02:12]} Rad8 {[%emt 0:00:07]} 30. Qd2 {[%emt 0:01:28]} Bg7 {[%emt 0:00:17]} 31. Qe3 {[%emt 0:03:02]} b5 {[%emt 0:00:17]} 32. b3 {[%emt 0:02:05]} b4 {[%emt 0:00:19]} 33. d6 {[%emt 0:03:51]} Qxd6 {[%emt 0:00:57]} 34. Ne4 {[%emt 0:00:02]} Qc6 {[%emt 0:00:10]} 35. Kh2 {[%emt 0:00:41]} Rd4 {[%emt 0:00:00]} 36. Bh5 {[%emt 0:02:34]} Rxe4 {[%emt 0:00:19]} 37. Rxe4 {[%emt 0:00:24]} Rxf2+ {[%emt 0:00:03]} 38. Qxf2 {[%emt 0:00:55]} Qxe4 {[%emt 0:00:02]} 39. Qf7 {[%emt 0:00:39]} Qf5 {[%emt 0:00:07]} 40. Qe8+ {[%emt 0:00:18]} Kh7 {[%emt 0:00:01]} 41. Bf7 {[%emt 0:00:11]} h5 {[%emt 0:00:17]} 42. Qg8+ {[%emt 0:00:19]} Kh6 {[%emt 0:00:01]} 43. Bxe6 {[%emt 0:00:08]} Qf2+ {[%emt 0:00:25]} 44. Kh3 {[%emt 0:00:06]} Qf1+ {[%emt 0:00:01]} 45. Kh2 {[%emt 0:00:05]} Qf6 {[%emt 0:00:10]} 46. Bd5 {[%emt 0:00:20]} Qf8 {[%emt 0:00:07]} 47. Qe6+ {[%emt 0:00:05]} Qf6 {[%emt 0:00:02]} 48. Qh3 {[%emt 0:00:18]} Qf2+ {[%emt 0:00:01]} 49. Qg2 {[%emt 0:00:09]} Qxg2+ {[%emt 0:00:03]} 50. Kxg2 {[%emt 0:00:02]} a5 {[%emt 0:00:10]} 51. Be4 {[%emt 0:00:14]} Bf6 {[%emt 0:00:00]} 52. Kf3 {[%emt 0:00:05]} Kg7 {[%emt 0:00:00]} 53. Ke3 {[%emt 0:00:12]} Kf7 {[%emt 0:00:00]} 54. Bf5 {[%emt 0:00:12]} Kg7 {[%emt 0:00:02]} 55. Ke4 {[%emt 0:00:12]} Kf7 {[%emt 0:00:08]} 56. Kd5 {[%emt 0:00:04]} e4 {[%emt 0:00:03]} 57. Kxc5 {[%emt 0:00:18]} e3 {[%emt 0:00:11]} 58. Bd3 {[%emt 0:00:03]} Ke6 {[%emt 0:00:00]} 59. Be2 {[%emt 0:00:14]} Ke5 {[%emt 0:00:00]} 60. Bxh5 {[%emt 0:00:06]} Ke4 {[%emt 0:00:00]} 61. Kb5 {[%emt 0:00:18]} Bd8 {[%emt 0:00:01]} 62. c5 {[%emt 0:00:09]} Kd3 {[%emt 0:00:01]} 63. Ka6 {[%emt 0:00:11]} e2 {[%emt 0:00:01]} 64. Bxe2+ {[%emt 0:00:02]} Kxe2 {[%emt 0:00:10]} 65. h5 {[%emt 0:00:05]} Kd3 {[%emt 0:00:00]} 66. Kb7 {[%emt 0:00:12]} Kd4 {[%emt 0:00:00]} 67. c6 {[%emt 0:00:01]} Kd5 {[%emt 0:00:00]} 68. c7 {[%emt 0:00:01]} Bxc7 {[%emt 0:00:06]} 69. Kxc7 {[%emt 0:00:01]} Ke5 {[%emt 0:00:01]} 70. Kb6 {[%emt 0:00:02]} Kf5 {[%emt 0:00:01]} 71. Kxa5 {[%emt 0:00:01]} Kg5 {[%emt 0:00:11]} 72. Kxb4 {[%emt 0:00:01]} Kxh5 {[%emt 0:00:00]} 73. a4 {[%emt 0:00:01]} Kg4 {[%emt 0:00:00]} 74. a5 {[%emt 0:00:01]} Kxg3 {[%emt 0:00:00]} 75. a6 {[%emt 0:00:11]} Kf4 {[%emt 0:00:00]} 76. a7 {[%emt 0:00:00]} 1-0

[Event "Slovakia Open 2022"]
[Site "Bratislava"]
[Date "2022.09.30"]
[Round "3.33"]
[White "Malaschitz, Teodor"]
[Black "Kluckova, Alzbeta"]
[Result "1-0"]
[ECO "C50"]
[WhiteElo "1448"]
[BlackElo "1097"]
[Annotator "NA RC COMBH"]
[PlyCount "83"]
[EventDate "2022.09.30"]
[EventCountry "SVK"]
[SourceTitle "playchess.com"]
[Source "ChessBase"]
[SourceQuality "1"]
[TimeControl "2700+10"]

1. e4 {[%emt 0:00:05]} e5 {[%emt 0:00:07]} 2. Nf3 {[%emt 0:00:02]} Nc6 {[%emt 0:00:04]} 3. Bc4 {[%emt 0:00:01]} Bc5 {[%emt 0:00:12]} 4. d3 {[%emt 0:00:12]} Nge7 {[%emt 0:01:46]} 5. c3 {[%emt 0:00:08]} d6 {[%emt 0:00:12]} 6. Be3 {[%emt 0:00:04]} Bxe3 {[%emt 0:00:24]} 7. fxe3 {[%emt 0:00:01]} Na5 {[%emt 0:00:17]} 8. Nbd2 {[%emt 0:00:21]} Nxc4 {[%emt 0:00:30]} 9. Nxc4 {[%emt 0:00:02]} b5 {[%emt 0:00:33]} 10. Ncd2 {[%emt 0:00:28]} Ng6 {[%emt 0:02:14]} 11. O-O {[%emt 0:00:56]} O-O {[%emt 0:00:04]} 12. d4 {[%emt 0:00:33]} Qe8 {[%emt 0:01:15]} 13. Qe1 {[%emt 0:01:10]} c6 {[%emt 0:02:45]} 14. Nh4 {[%emt 0:00:06]} Nxh4 {[%emt 0:00:33]} 15. Qxh4 {[%emt 0:00:04]} Qd8 {[%emt 0:03:09]} 16. Qh5 {[%emt 0:01:00]} Be6 {[%emt 0:04:49]} 17. Nf3 {[%emt 0:01:10]} Qd7 {[%emt 0:00:31]} 18. Ng5 {[%emt 0:00:16]} h6 {[%emt 0:00:24]} 19. Nxe6 {[%emt 0:00:07]} Qxe6 {[%emt 0:02:49]} 20. Qf5 {[%emt 0:00:06]} Qxf5 {[%emt 0:01:42]} 21. Rxf5 {[%emt 0:00:09]} f6 {[%emt 0:01:06]} 22. d5 {[%emt 0:00:27]} c5 {[%emt 0:00:16]} 23. Rff1 {[%emt 0:00:43]} a5 {[%emt 0:01:39]} 24. a4 {[%emt 0:00:19]} b4 {[%emt 0:00:17]} 25. cxb4 {[%emt 0:00:07]} cxb4 {[%emt 0:00:03]} 26. Rfc1 {[%emt 0:00:02]} Rac8 {[%emt 0:00:11]} 27. g4 {[%emt 0:00:40]} Rxc1+ {[%emt 0:00:22]} 28. Rxc1 {[%emt 0:00:03]} b3 {[%emt 0:04:28]} 29. Rc6 {[%emt 0:00:15]} Rd8 {[%emt 0:00:07]} 30. Kf2 {[%emt 0:00:15]} Kf7 {[%emt 0:00:39]} 31. Ke2 {[%emt 0:00:02]} Ke7 {[%emt 0:00:02]} 32. Kd2 {[%emt 0:00:10]} Kd7 {[%emt 0:00:13]} 33. Rb6 {[%emt 0:00:23]} Rc8 {[%emt 0:00:11]} 34. Rxb3 {[%emt 0:00:04]} Rc5 {[%emt 0:00:44]} 35. Rc3 {[%emt 0:00:13]} Rc7 {[%emt 0:03:22]} 36. Rxc7+ {[%emt 0:00:04]} Kxc7 {[%emt 0:00:01]} 37. Kc3 {[%emt 0:00:01]} Kb6 {[%emt 0:00:02]} 38. Kc4 {[%emt 0:00:01]} g6 {[%emt 0:00:06]} 39. b4 {[%emt 0:00:15]} h5 {[%emt 0:01:03]} 40. gxh5 {[%emt 0:00:02]} gxh5 {[%emt 0:00:02]} 41. h4 {[%emt 0:00:03]} axb4 {[%emt 0:01:47]} 42. Kxb4 {[%emt 0:00:01]} 1-0

[Event "Slovakia Open 2022"]
[Site "Bratislava"]
[Date "2022.09.30"]
[Round "3.34"]
[White "Ruderfer, Mark B"]
[Black "Kostic, Ivan"]
[Result "1-0"]
[ECO "C29"]
[WhiteElo "2236"]
[BlackElo "1716"]
[Annotator "TA"]
[PlyCount "38"]
[EventDate "2022.09.30"]
[EventCountry "SVK"]
[SourceTitle "playchess.com"]
[Source "ChessBase"]
[SourceQuality "1"]
[TimeControl "2700+10"]

{[%evp 9,38,37,44,45,32,-31,337,290,918,908,29992,29993,29993,29994,29994,29995,29995,29993,29994,29994,29995,29996,29996,29997,29997,29995,29996,29996,29997,29998,29999]} 1. e4 {[%emt 0:00:07]} e5 {[%emt 0:00:02]} 2. Nc3 {[%emt 0:00:02]} Nf6 {[%emt 0:00:10]} 3. f4 {[%emt 0:00:02]} exf4 {[%emt 0:00:17]} 4. e5 {[%emt 0:00:02]} Ng8 {[%emt 0:00:12]} 5. Nf3 {[%emt 0:00:03]} d6 {[%emt 0:00:18]} 6. d4 {[%emt 0:00:38] C29: Vienna Game: 2...Nf6 3 f4.} dxe5 {[%emt 0:01:34]} 7. Bc4 {[%emt 0:01:35] [#]} ({Much worse is} 7. Nxe5 Qh4+ 8. Kd2 (8. g3 fxg3 9. Bg2 gxh2+ 10. Kf1 Bd6 $17) 8... Qf2+ 9. Qe2 Qxd4+ 10. Ke1 Be7 11. Bxf4 Nf6 $15) (7. Qe2 $1 $14) 7... g5 $146 {[%emt 0:01:55][%mdl 8192] [#] A mistake that costs the game.} (7... Nc6 $15 {keeps the upper hand.}) ({Predecessor:} 7... Bg4 8. Bxf7+ Ke7 9. Bd5 c6 10. Be4 exd4 11. Qxd4 Qxd4 12. Nxd4 Nf6 13. Bxf4 Nbd7 {1-0 (41) Depta,T (1888)-Sandor,S (1653) Ostrava 2014}) 8. Nxe5 $18 {[%emt 0:00:37] White has a decisive advantage.} Be6 {[%emt 0:02:32]} (8... Nh6 9. Qh5 Bg7 10. Nxf7 Qe7+ 11. Ne5+ Kd8) 9. Bxe6 {[%emt 0:00:21]} fxe6 {[%emt 0:02:24]} 10. Qh5+ {[%emt 0:00:04] White mates.} Ke7 {[%emt 0:00:02]} 11. Qf7+ {[%emt 0:00:19]} Kd6 {[%emt 0:00:16]} 12. Nb5+ {[%emt 0:01:23]} Kd5 {[%emt 0:00:47]} 13. c4+ {[%emt 0:01:20]} Ke4 {[%emt 0:00:51]} 14. O-O {[%emt 0:00:22][%cal Rf1e1]} Qf6 {[%emt 0:00:58]} 15. Re1+ {[%emt 0:01:31]} Kf5 {[%emt 0:00:04]} 16. g4+ {[%emt 0:00:18]} fxg3 {[%emt 0:00:25]} 17. Rf1+ {[%emt 0:00:03][%mdl 64] [#] Deflection} Ke4 {[%emt 0:00:06]} 18. Rxf6 {[%emt 0:00:07]} Nxf6 {[%emt 0:00:04]} 19. Qxf6 {[%emt 0:00:03][%csl Ge5][%cal Rf6f3]} Rg8 {[%emt 0:00:13] Weighted Error Value: White=0.07 (flawless) /Black=1.69} 1-0